[Event "Early-Titled-Tuesday-Blitz-May-07-2024"]
[Site "Chess.com"]
[Date "2024.05.07"]
[Round "10"]
[White "Byniolus"]
[Black "DrVelja"]
[Result "0-1"]
[WhiteElo "2821"]
[BlackElo "2976"]
[TimeControl "180+1"]
[EndTime "10:03:23 PDT"]
[Termination "DrVelja won by resignation"]

1. d4 {[%clk 0:03:00.9]} 1... Nf6 {[%clk 0:02:59.6]} 2. Nf3 {[%clk 0:03:01.1]}
2... g6 {[%clk 0:03:00.2]} 3. Bf4 {[%clk 0:03:01.2]} 3... Bg7 {[%clk 0:03:00.7]}
4. e3 {[%clk 0:03:02.1]} 4... O-O {[%clk 0:03:01.1]} 5. Be2 {[%clk 0:03:02.6]}
5... d6 {[%clk 0:03:01.9]} 6. h3 {[%clk 0:03:02.9]} 6... b6 {[%clk 0:03:02.1]}
7. O-O {[%clk 0:03:02.7]} 7... Bb7 {[%clk 0:03:02.7]} 8. a4 {[%clk 0:03:03.4]}
8... a6 {[%clk 0:03:03]} 9. c3 {[%clk 0:03:03.8]} 9... Nbd7 {[%clk 0:03:03.1]}
10. Bh2 {[%clk 0:03:04.7]} 10... Ne4 {[%clk 0:03:03.3]} 11. Nbd2 {[%clk
0:03:05.1]} 11... Nxd2 {[%clk 0:03:03.6]} 12. Nxd2 {[%clk 0:03:05]} 12... e5
{[%clk 0:03:04]} 13. Bf3 {[%clk 0:03:05.7]} 13... Qc8 {[%clk 0:03:04.5]} 14. Qb3
{[%clk 0:03:04.3]} 14... h6 {[%clk 0:02:58.8]} 15. Rfd1 {[%clk 0:03:03.2]} 15...
Kh7 {[%clk 0:02:56.2]} 16. Rac1 {[%clk 0:02:51.7]} 16... f5 {[%clk 0:02:51.8]}
17. Bxb7 {[%clk 0:02:51.8]} 17... Qxb7 {[%clk 0:02:52.7]} 18. Nf3 {[%clk
0:02:47.1]} 18... Rae8 {[%clk 0:02:46.4]} 19. a5 {[%clk 0:02:38.8]} 19... e4
{[%clk 0:02:29]} 20. Nd2 {[%clk 0:02:37.2]} 20... g5 {[%clk 0:02:29.1]} 21. axb6
{[%clk 0:02:36]} 21... f4 {[%clk 0:02:24.1]} 22. bxc7 {[%clk 0:02:33.3]} 22...
Qxc7 {[%clk 0:02:25]} 23. Ra1 {[%clk 0:02:20.9]} 23... a5 {[%clk 0:01:58.2]} 24.
Qd5 {[%clk 0:02:09.1]} 24... Nb6 {[%clk 0:01:58.4]} 25. Qxa5 {[%clk 0:02:04.9]}
25... d5 {[%clk 0:01:58.7]} 26. Qc5 {[%clk 0:02:00]} 26... Qb7 {[%clk
0:01:54.4]} 27. Qb5 {[%clk 0:01:53.3]} 27... Re6 {[%clk 0:01:49.7]} 28. c4
{[%clk 0:01:46.3]} 28... Qf7 {[%clk 0:01:26.4]} 29. cxd5 {[%clk 0:01:36]} 29...
Rg6 {[%clk 0:01:27]} 30. Nxe4 {[%clk 0:01:24.7]} 30... Nxd5 {[%clk 0:01:26.8]}
31. exf4 {[%clk 0:01:14.9]} 31... gxf4 {[%clk 0:01:24.2]} 32. Ra5 {[%clk
0:00:56.7]} 32... Rd8 {[%clk 0:01:14.8]} 33. Qd3 {[%clk 0:00:30.4]} 33... f3
{[%clk 0:01:08.4]} 34. Bg3 {[%clk 0:00:24]} 34... fxg2 {[%clk 0:00:53.9]} 35.
Nd6 {[%clk 0:00:19.4]} 35... Qe6 {[%clk 0:00:48.1]} 36. Qf3 {[%clk 0:00:06.6]}
36... Qxh3 {[%clk 0:00:41.2]} 37. Qxg2 {[%clk 0:00:07.2]} 37... Qxg2+ {[%clk
0:00:41.8]} 38. Kxg2 {[%clk 0:00:08.1]} 38... Rdxd6 {[%clk 0:00:42.4]} 39. Ra7
{[%clk 0:00:06.2]} 39... Rb6 {[%clk 0:00:36.4]} 40. Rc1 {[%clk 0:00:03.4]} 40...
Rxb2 {[%clk 0:00:34.1]} 41. Rc5 {[%clk 0:00:04.3]} 41... Nf4+ {[%clk 0:00:31.1]}
42. Kf3 {[%clk 0:00:04.9]} 42... Ne6 {[%clk 0:00:31.3]} 43. Rd5 {[%clk
0:00:02.5]} 43... Rb3+ {[%clk 0:00:27.1]} 44. Ke2 {[%clk 0:00:01.6]} 44... Kg8
{[%clk 0:00:09.9]} 45. Be5 {[%clk 0:00:02.5]} 45... Bxe5 {[%clk 0:00:09.1]} 46.
Rxe5 {[%clk 0:00:03.4]} 46... Rb8 {[%clk 0:00:05.4]} 47. d5 {[%clk 0:00:03]}
47... Ng7 {[%clk 0:00:06]} 48. Ree7 {[%clk 0:00:02.6]} 48... Re8 {[%clk
0:00:05]} 49. Kd3 {[%clk 0:00:02.7]} 49... Rxe7 {[%clk 0:00:05.3]} 50. Rxe7
{[%clk 0:00:03.6]} 50... h5 {[%clk 0:00:06]} 51. Kd4 {[%clk 0:00:03.1]} 51... h4
{[%clk 0:00:06.3]} 52. Re3 {[%clk 0:00:02.6]} 52... Nf5+ {[%clk 0:00:06.5]} 53.
Kc5 {[%clk 0:00:03.3]} 53... Nxe3 {[%clk 0:00:07.4]} 54. fxe3 {[%clk 0:00:04.1]}
54... h3 {[%clk 0:00:07.8]} 0-1

[Event "Early-Titled-Tuesday-Blitz-May-07-2024"]
[Site "Chess.com"]
[Date "2024.05.07"]
[Round "10"]
[White "TitarovVasiliYouTube"]
[Black "PenguinPacks"]
[Result "1-0"]
[WhiteElo "2626"]
[BlackElo "2487"]
[TimeControl "180+1"]
[EndTime "10:03:23 PDT"]
[Termination "TitarovVasiliYouTube won by resignation"]

1. c4 {[%clk 0:03:00.9]} 1... Nf6 {[%clk 0:02:59.8]} 2. e3 {[%clk 0:02:59.2]}
2... g6 {[%clk 0:02:59.7]} 3. Nf3 {[%clk 0:02:58.9]} 3... Bg7 {[%clk 0:03:00.2]}
4. Nc3 {[%clk 0:02:59.1]} 4... O-O {[%clk 0:03:00.8]} 5. Qc2 {[%clk 0:02:59.3]}
5... d6 {[%clk 0:03:00.4]} 6. b3 {[%clk 0:02:59.8]} 6... e5 {[%clk 0:03:00.5]}
7. Bb2 {[%clk 0:03:00.4]} 7... Nc6 {[%clk 0:02:58.9]} 8. Be2 {[%clk 0:02:59.5]}
8... Bf5 {[%clk 0:02:57.2]} 9. d3 {[%clk 0:02:54.4]} 9... Re8 {[%clk 0:02:52.5]}
10. O-O {[%clk 0:02:44.1]} 10... e4 {[%clk 0:02:44.6]} 11. dxe4 {[%clk 0:02:45]}
11... Nxe4 {[%clk 0:02:44.9]} 12. Nxe4 {[%clk 0:02:45.4]} 12... Bxe4 {[%clk
0:02:45.8]} 13. Qc1 {[%clk 0:02:45.7]} 13... Ne5 {[%clk 0:02:37]} 14. Nxe5
{[%clk 0:02:36.2]} 14... dxe5 {[%clk 0:02:35.5]} 15. f3 {[%clk 0:02:30.9]} 15...
Bc6 {[%clk 0:02:34.9]} 16. e4 {[%clk 0:02:30.4]} 16... Qh4 {[%clk 0:02:34]} 17.
Qe1 {[%clk 0:02:19.1]} 17... Qg5 {[%clk 0:02:34]} 18. Qc1 {[%clk 0:02:13.1]}
18... Qh4 {[%clk 0:02:31.9]} 19. Qe3 {[%clk 0:02:12.7]} 19... Rad8 {[%clk
0:02:26.4]} 20. Rfd1 {[%clk 0:02:03.3]} 20... Bh6 {[%clk 0:02:20.2]} 21. Qf2
{[%clk 0:01:52]} 21... Qf6 {[%clk 0:02:17.7]} 22. Qxa7 {[%clk 0:01:36.3]} 22...
Bf4 {[%clk 0:02:05.2]} 23. Qf2 {[%clk 0:01:33.6]} 23... Qg5 {[%clk 0:02:04]} 24.
Kh1 {[%clk 0:01:20.6]} 24... Qh6 {[%clk 0:02:04]} 25. g3 {[%clk 0:01:19.4]}
25... Be3 {[%clk 0:02:03.7]} 26. Qg2 {[%clk 0:01:17]} 26... f5 {[%clk
0:01:55.3]} 27. Bd3 {[%clk 0:01:01.5]} 27... Bb6 {[%clk 0:01:33]} 28. Qe2 {[%clk
0:00:53]} 28... Qh5 {[%clk 0:01:28.7]} 29. Bc2 {[%clk 0:00:50.1]} 29... Rd4
{[%clk 0:01:04.4]} 30. Bxd4 {[%clk 0:00:34.4]} 30... exd4 {[%clk 0:01:05.3]} 31.
Re1 {[%clk 0:00:23.8]} 31... d3 {[%clk 0:00:54.4]} 32. Bxd3 {[%clk 0:00:23.7]}
32... Qh3 {[%clk 0:00:45.2]} 33. Qg2 {[%clk 0:00:22.4]} 33... Qh5 {[%clk
0:00:42.5]} 34. Rad1 {[%clk 0:00:14.7]} 34... Qg5 {[%clk 0:00:33.1]} 35. Bb1
{[%clk 0:00:14.1]} 35... Ba5 {[%clk 0:00:21.6]} 36. Re2 {[%clk 0:00:13]} 36...
Qf6 {[%clk 0:00:17.5]} 37. exf5 {[%clk 0:00:09.8]} 37... Rf8 {[%clk 0:00:18]}
38. Be4 {[%clk 0:00:08.7]} 38... gxf5 {[%clk 0:00:17.2]} 39. Bxc6 {[%clk
0:00:08.7]} 39... Qxc6 {[%clk 0:00:18.1]} 40. f4 {[%clk 0:00:09.4]} 40... Qa6
{[%clk 0:00:18.7]} 41. Qd5+ {[%clk 0:00:09.4]} 41... Kh8 {[%clk 0:00:18.6]} 42.
Qe5+ {[%clk 0:00:09.7]} 42... Kg8 {[%clk 0:00:17.8]} 43. Qe6+ {[%clk 0:00:10.3]}
43... Kh8 {[%clk 0:00:17.9]} 44. Qxa6 {[%clk 0:00:10.1]} 44... bxa6 {[%clk
0:00:17.5]} 45. Re5 {[%clk 0:00:11]} 45... Bb6 {[%clk 0:00:14.6]} 46. c5 {[%clk
0:00:11.4]} 46... Ba5 {[%clk 0:00:14.3]} 47. Rd7 {[%clk 0:00:11.1]} 47... Bc3
{[%clk 0:00:12]} 48. Ree7 {[%clk 0:00:10.7]} 48... a5 {[%clk 0:00:11.9]} 49.
Rxc7 {[%clk 0:00:10.8]} 49... a4 {[%clk 0:00:11.6]} 50. bxa4 {[%clk 0:00:11.7]}
50... Rb8 {[%clk 0:00:11.1]} 51. Rb7 {[%clk 0:00:11.9]} 51... Rc8 {[%clk
0:00:10.9]} 52. c6 {[%clk 0:00:10.9]} 52... Bf6 {[%clk 0:00:07.9]} 53. Rf7
{[%clk 0:00:08.2]} 1-0

[Event "Early-Titled-Tuesday-Blitz-May-07-2024"]
[Site "Chess.com"]
[Date "2024.05.07"]
[Round "10"]
[White "andrzej"]
[Black "Zq1"]
[Result "0-1"]
[WhiteElo "2470"]
[BlackElo "2623"]
[TimeControl "180+1"]
[EndTime "10:03:23 PDT"]
[Termination "Zq1 won by resignation"]

1. e4 {[%clk 0:03:00.9]} 1... c5 {[%clk 0:02:59.3]} 2. Nf3 {[%clk 0:03:01.1]}
2... d6 {[%clk 0:02:59.3]} 3. d4 {[%clk 0:03:01.6]} 3... cxd4 {[%clk 0:02:59.4]}
4. Nxd4 {[%clk 0:03:02.5]} 4... Nf6 {[%clk 0:02:59.2]} 5. Nc3 {[%clk 0:03:03.1]}
5... Nc6 {[%clk 0:02:59.3]} 6. Bg5 {[%clk 0:03:02.6]} 6... g6 {[%clk 0:02:58.4]}
7. Bxf6 {[%clk 0:03:02.1]} 7... exf6 {[%clk 0:02:58.3]} 8. Bb5 {[%clk
0:03:02.5]} 8... Bd7 {[%clk 0:02:57.1]} 9. Qd2 {[%clk 0:03:02.8]} 9... Bg7
{[%clk 0:02:53.6]} 10. O-O-O {[%clk 0:03:02.9]} 10... O-O {[%clk 0:02:53]} 11.
Nb3 {[%clk 0:03:00.1]} 11... a6 {[%clk 0:02:44.4]} 12. Bxc6 {[%clk 0:02:57.5]}
12... Bxc6 {[%clk 0:02:43]} 13. Qxd6 {[%clk 0:02:51.4]} 13... Qxd6 {[%clk
0:02:40.8]} 14. Rxd6 {[%clk 0:02:50.9]} 14... f5 {[%clk 0:02:40.3]} 15. exf5
{[%clk 0:02:28.8]} 15... Bxg2 {[%clk 0:02:37.1]} 16. Rg1 {[%clk 0:02:28.8]}
16... Bh3 {[%clk 0:02:23.4]} 17. Nd5 {[%clk 0:02:08.5]} 17... Rfd8 {[%clk
0:02:07.4]} 18. Rxd8+ {[%clk 0:01:55.7]} 18... Rxd8 {[%clk 0:02:06]} 19. c4
{[%clk 0:01:54.8]} 19... Bh6+ {[%clk 0:01:56.9]} 20. f4 {[%clk 0:01:47.1]} 20...
Bxf5 {[%clk 0:01:45.8]} 21. Ne7+ {[%clk 0:01:42.1]} 21... Kf8 {[%clk 0:01:45.7]}
22. Nxf5 {[%clk 0:01:42.1]} 22... Bxf4+ {[%clk 0:01:45.2]} 23. Kc2 {[%clk
0:01:41.4]} 23... gxf5 {[%clk 0:01:44.6]} 24. h4 {[%clk 0:01:36.9]} 24... Be5
{[%clk 0:01:26.2]} 25. Nc5 {[%clk 0:01:22.7]} 25... Rd4 {[%clk 0:01:21.8]} 26.
b3 {[%clk 0:01:07.7]} 26... Ke7 {[%clk 0:01:20]} 27. Re1 {[%clk 0:00:59.5]}
27... Kf6 {[%clk 0:01:18.6]} 28. h5 {[%clk 0:00:59.7]} 28... f4 {[%clk
0:01:13.1]} 29. Nd3 {[%clk 0:00:42.4]} 29... Bc7 {[%clk 0:01:01.6]} 30. Kc3
{[%clk 0:00:42.7]} 30... Rd8 {[%clk 0:00:56.5]} 31. Nc5 {[%clk 0:00:36.4]} 31...
Be5+ {[%clk 0:00:46.6]} 32. Kc2 {[%clk 0:00:36.4]} 32... Kf5 {[%clk 0:00:42]}
33. Nxb7 {[%clk 0:00:34.4]} 33... Rg8 {[%clk 0:00:41.3]} 34. c5 {[%clk
0:00:26.4]} 34... Rg2+ {[%clk 0:00:33.5]} 35. Kd3 {[%clk 0:00:26.7]} 35... Rg3+
{[%clk 0:00:33.2]} 36. Kc4 {[%clk 0:00:24.8]} 36... Rc3+ {[%clk 0:00:32.4]} 37.
Kd5 {[%clk 0:00:24.9]} 37... Rd3+ {[%clk 0:00:29.3]} 38. Kc6 {[%clk 0:00:23.6]}
38... f3 {[%clk 0:00:27.8]} 39. Nd6+ {[%clk 0:00:23.5]} 39... Bxd6 {[%clk
0:00:14.4]} 40. cxd6 {[%clk 0:00:23.4]} 40... Kf4 {[%clk 0:00:12.3]} 41. d7
{[%clk 0:00:22.3]} 41... f2 {[%clk 0:00:12.4]} 42. Rf1 {[%clk 0:00:22.6]} 42...
Kf3 {[%clk 0:00:12.3]} 43. Kc7 {[%clk 0:00:20]} 43... Kg2 {[%clk 0:00:12]} 44.
Rxf2+ {[%clk 0:00:18.9]} 44... Kxf2 {[%clk 0:00:12.1]} 45. d8=Q {[%clk
0:00:19.5]} 45... Rxd8 {[%clk 0:00:12.3]} 46. Kxd8 {[%clk 0:00:20.4]} 46... f5
{[%clk 0:00:12.4]} 47. b4 {[%clk 0:00:20.3]} 47... f4 {[%clk 0:00:12.7]} 48. a4
{[%clk 0:00:21]} 48... f3 {[%clk 0:00:13]} 49. b5 {[%clk 0:00:21.6]} 49... axb5
{[%clk 0:00:13.2]} 50. axb5 {[%clk 0:00:22.5]} 50... Kg2 {[%clk 0:00:11.4]} 51.
b6 {[%clk 0:00:23.4]} 51... f2 {[%clk 0:00:10.3]} 52. b7 {[%clk 0:00:24.3]}
52... f1=Q {[%clk 0:00:10]} 53. b8=Q {[%clk 0:00:25.2]} 53... Qf8+ {[%clk
0:00:10.1]} 54. Kc7 {[%clk 0:00:25.8]} 54... Qxb8+ {[%clk 0:00:08.7]} 55. Kxb8
{[%clk 0:00:26.7]} 55... Kg3 {[%clk 0:00:08.5]} 56. Kc7 {[%clk 0:00:27.6]} 56...
Kg4 {[%clk 0:00:08.7]} 57. Kd6 {[%clk 0:00:28.5]} 57... Kxh5 {[%clk 0:00:08.6]}
58. Ke5 {[%clk 0:00:29.4]} 58... Kg4 {[%clk 0:00:09]} 59. Ke4 {[%clk 0:00:27.6]}
59... Kg3 {[%clk 0:00:08.1]} 60. Ke3 {[%clk 0:00:22.8]} 60... h5 {[%clk
0:00:07.9]} 61. Ke2 {[%clk 0:00:23.1]} 61... Kg2 {[%clk 0:00:08.2]} 62. Ke3
{[%clk 0:00:23.3]} 62... h4 {[%clk 0:00:08.6]} 63. Kf4 {[%clk 0:00:23.7]} 63...
h3 {[%clk 0:00:09.3]} 0-1

[Event "Early-Titled-Tuesday-Blitz-May-07-2024"]
[Site "Chess.com"]
[Date "2024.05.07"]
[Round "10"]
[White "MasterKroket"]
[Black "Kunalm64"]
[Result "1/2-1/2"]
[WhiteElo "2516"]
[BlackElo "2614"]
[TimeControl "180+1"]
[EndTime "10:03:32 PDT"]
[Termination "Game drawn - insufficient material"]

1. e4 {[%clk 0:02:04.4]} 1... c6 {[%clk 0:02:59.7]} 2. d4 {[%clk 0:02:03.9]}
2... d5 {[%clk 0:03:00.4]} 3. Nc3 {[%clk 0:02:04.6]} 3... a6 {[%clk 0:03:00.1]}
4. e5 {[%clk 0:02:02]} 4... c5 {[%clk 0:02:59.3]} 5. f4 {[%clk 0:01:59.9]} 5...
Nc6 {[%clk 0:02:58.1]} 6. Nf3 {[%clk 0:01:58.9]} 6... Bg4 {[%clk 0:02:57.9]} 7.
dxc5 {[%clk 0:01:57.3]} 7... e6 {[%clk 0:02:57.5]} 8. Na4 {[%clk 0:01:45.4]}
8... Bxc5 {[%clk 0:02:54.8]} 9. Nxc5 {[%clk 0:01:44.8]} 9... Qa5+ {[%clk
0:02:55.4]} 10. c3 {[%clk 0:01:41.6]} 10... Qxc5 {[%clk 0:02:56]} 11. h3 {[%clk
0:01:38.6]} 11... Bxf3 {[%clk 0:02:53.9]} 12. Qxf3 {[%clk 0:01:38.5]} 12... d4
{[%clk 0:02:53]} 13. Bd2 {[%clk 0:01:36.6]} 13... Nge7 {[%clk 0:02:51.6]} 14.
Bd3 {[%clk 0:01:29.4]} 14... dxc3 {[%clk 0:02:48.7]} 15. Bxc3 {[%clk 0:01:29.3]}
15... Nd5 {[%clk 0:02:48.4]} 16. Rc1 {[%clk 0:01:23.8]} 16... O-O-O {[%clk
0:02:36.4]} 17. Be4 {[%clk 0:01:00.7]} 17... Kb8 {[%clk 0:02:30.5]} 18. Bd2
{[%clk 0:00:49.7]} 18... Qb6 {[%clk 0:02:26]} 19. Qb3 {[%clk 0:00:46]} 19...
Qxb3 {[%clk 0:02:15.5]} 20. axb3 {[%clk 0:00:46.9]} 20... Nd4 {[%clk 0:02:16]}
21. b4 {[%clk 0:00:34.5]} 21... Nb3 {[%clk 0:02:15]} 22. Rc2 {[%clk 0:00:26.6]}
22... Nxd2 {[%clk 0:02:07.2]} 23. Rxd2 {[%clk 0:00:27.5]} 23... Nxb4 {[%clk
0:01:56.8]} 24. Ke2 {[%clk 0:00:27.5]} 24... Rxd2+ {[%clk 0:01:56.5]} 25. Kxd2
{[%clk 0:00:28.4]} 25... Rd8+ {[%clk 0:01:56.4]} 26. Kc3 {[%clk 0:00:28.7]}
26... Nd5+ {[%clk 0:01:54.3]} 27. Kc2 {[%clk 0:00:27.1]} 27... Nxf4 {[%clk
0:01:47.1]} 28. Rf1 {[%clk 0:00:26]} 28... g5 {[%clk 0:01:31.3]} 29. g3 {[%clk
0:00:26.3]} 29... Rc8+ {[%clk 0:00:34.8]} 30. Kb3 {[%clk 0:00:21.6]} 30... Ne2
{[%clk 0:00:29.6]} 31. Rxf7 {[%clk 0:00:21.3]} 31... Nd4+ {[%clk 0:00:30]} 32.
Ka2 {[%clk 0:00:19.3]} 32... Rc7 {[%clk 0:00:26.1]} 33. Rxh7 {[%clk 0:00:18.2]}
33... Rxh7 {[%clk 0:00:25]} 34. Bxh7 {[%clk 0:00:19.1]} 34... Nf3 {[%clk
0:00:24.7]} 35. Bg8 {[%clk 0:00:18.2]} 35... g4 {[%clk 0:00:13.1]} 36. hxg4
{[%clk 0:00:17.3]} 36... Ng5 {[%clk 0:00:13.6]} 37. Kb3 {[%clk 0:00:16.3]} 37...
Kc7 {[%clk 0:00:13.2]} 38. Kc4 {[%clk 0:00:16.8]} 38... b6 {[%clk 0:00:13.2]}
39. Kd4 {[%clk 0:00:17.4]} 39... Kd7 {[%clk 0:00:12.3]} 40. Ke3 {[%clk
0:00:17.9]} 40... Ke7 {[%clk 0:00:11.8]} 41. Kf4 {[%clk 0:00:18.6]} 41... Nh3+
{[%clk 0:00:11.3]} 42. Ke4 {[%clk 0:00:16]} 42... a5 {[%clk 0:00:10.1]} 43. Kd4
{[%clk 0:00:13.9]} 43... Ng5 {[%clk 0:00:10.1]} 44. Kc4 {[%clk 0:00:13.4]} 44...
Kd7 {[%clk 0:00:10.1]} 45. Kb5 {[%clk 0:00:13.7]} 45... Kc7 {[%clk 0:00:10.2]}
46. b4 {[%clk 0:00:13.8]} 46... axb4 {[%clk 0:00:10.4]} 47. Kxb4 {[%clk
0:00:14.7]} 47... Kc6 {[%clk 0:00:10.6]} 48. Kc4 {[%clk 0:00:15.1]} 48... b5+
{[%clk 0:00:10.8]} 49. Kd4 {[%clk 0:00:15.1]} 49... Kd7 {[%clk 0:00:06.9]} 50.
Kc5 {[%clk 0:00:15.2]} 50... Ke7 {[%clk 0:00:05.7]} 51. Kxb5 {[%clk 0:00:15.5]}
51... Kf8 {[%clk 0:00:05.4]} 52. Bxe6 {[%clk 0:00:15.5]} 52... Nxe6 {[%clk
0:00:05.9]} 53. Kc6 {[%clk 0:00:16.2]} 53... Kf7 {[%clk 0:00:05.9]} 54. Kd6
{[%clk 0:00:16.7]} 54... Nf8 {[%clk 0:00:05.2]} 55. Kd5 {[%clk 0:00:16.8]} 55...
Kg6 {[%clk 0:00:05]} 56. Kd6 {[%clk 0:00:16.3]} 56... Kg5 {[%clk 0:00:04.6]} 57.
e6 {[%clk 0:00:15]} 57... Nxe6 {[%clk 0:00:04]} 58. Kxe6 {[%clk 0:00:15.3]}
58... Kxg4 {[%clk 0:00:04.9]} 59. Ke5 {[%clk 0:00:16]} 59... Kxg3 {[%clk
0:00:05.8]} 1/2-1/2

[Event "Early-Titled-Tuesday-Blitz-May-07-2024"]
[Site "Chess.com"]
[Date "2024.05.07"]
[Round "10"]
[White "MarkusRagger"]
[Black "watermelonattackk"]
[Result "1-0"]
[WhiteElo "2789"]
[BlackElo "2560"]
[TimeControl "180+1"]
[EndTime "10:03:33 PDT"]
[Termination "MarkusRagger won by resignation"]

1. e4 {[%clk 0:03:00.9]} 1... e5 {[%clk 0:02:49.1]} 2. Nf3 {[%clk 0:02:56]} 2...
Nc6 {[%clk 0:02:48.8]} 3. Bc4 {[%clk 0:02:55.9]} 3... Nf6 {[%clk 0:02:48.9]} 4.
d3 {[%clk 0:02:55.8]} 4... Be7 {[%clk 0:02:48.6]} 5. O-O {[%clk 0:02:54]} 5...
d6 {[%clk 0:02:48.8]} 6. a4 {[%clk 0:02:50.3]} 6... h6 {[%clk 0:02:49]} 7. a5
{[%clk 0:02:46.8]} 7... a6 {[%clk 0:02:49.1]} 8. c3 {[%clk 0:02:43.2]} 8... O-O
{[%clk 0:02:49.1]} 9. b4 {[%clk 0:02:41.9]} 9... Be6 {[%clk 0:02:48.6]} 10. Bxe6
{[%clk 0:02:37.9]} 10... fxe6 {[%clk 0:02:48.8]} 11. Nbd2 {[%clk 0:02:37.9]}
11... Nh7 {[%clk 0:02:45.8]} 12. Re1 {[%clk 0:02:35.9]} 12... Bg5 {[%clk
0:02:44.2]} 13. Qb3 {[%clk 0:02:28.7]} 13... Qd7 {[%clk 0:02:42.8]} 14. Nxg5
{[%clk 0:02:12.9]} 14... Nxg5 {[%clk 0:02:42.8]} 15. Nf1 {[%clk 0:02:12.1]}
15... Nh7 {[%clk 0:02:42]} 16. Ng3 {[%clk 0:02:06.8]} 16... Ne7 {[%clk 0:02:37]}
17. h3 {[%clk 0:01:59.7]} 17... Ng6 {[%clk 0:02:36.5]} 18. Be3 {[%clk
0:01:57.5]} 18... Nf4 {[%clk 0:02:36.3]} 19. d4 {[%clk 0:01:55.5]} 19... Qf7
{[%clk 0:02:35.5]} 20. dxe5 {[%clk 0:01:50]} 20... dxe5 {[%clk 0:02:35.3]} 21.
Rad1 {[%clk 0:01:50]} 21... Rae8 {[%clk 0:02:35.1]} 22. Bc5 {[%clk 0:01:47]}
22... Ng5 {[%clk 0:02:28.6]} 23. Bxf8 {[%clk 0:01:41.7]} 23... Rxf8 {[%clk
0:02:29.5]} 24. Qc2 {[%clk 0:01:41.9]} 24... Qg6 {[%clk 0:02:28.5]} 25. Re3
{[%clk 0:01:36.5]} 25... h5 {[%clk 0:02:20.7]} 26. h4 {[%clk 0:01:31.4]} 26...
Nh7 {[%clk 0:02:00.8]} 27. Rd2 {[%clk 0:01:31.5]} 27... Nf6 {[%clk 0:02:00.8]}
28. Qd1 {[%clk 0:01:31.7]} 28... Ng4 {[%clk 0:01:59.3]} 29. Rf3 {[%clk
0:01:31.8]} 29... Kh7 {[%clk 0:01:54]} 30. Rd8 {[%clk 0:01:27.5]} 30... Rf6
{[%clk 0:01:39.7]} 31. Rc8 {[%clk 0:01:21]} 31... Rf7 {[%clk 0:01:13.2]} 32. Qd8
{[%clk 0:01:18.4]} 32... Kh6 {[%clk 0:00:58.9]} 33. Rxc7 {[%clk 0:01:03]} 33...
Rxc7 {[%clk 0:00:56.8]} 34. Qxc7 {[%clk 0:01:03.9]} 34... Qf6 {[%clk 0:00:42.4]}
35. Qc8 {[%clk 0:00:50]} 35... Qxh4 {[%clk 0:00:39.2]} 36. Rxf4 {[%clk
0:00:33.5]} 36... exf4 {[%clk 0:00:39]} 37. Qxe6+ {[%clk 0:00:33.5]} 37... Qf6
{[%clk 0:00:38]} 38. Nf5+ {[%clk 0:00:29.8]} 38... Kh7 {[%clk 0:00:33.3]} 39.
Qxf6 {[%clk 0:00:30]} 39... Nxf6 {[%clk 0:00:33.1]} 40. Nd6 {[%clk 0:00:30.6]}
40... g5 {[%clk 0:00:23.6]} 41. Nxb7 {[%clk 0:00:30.4]} 41... Nxe4 {[%clk
0:00:23.4]} 42. b5 {[%clk 0:00:31.1]} 42... Nxc3 {[%clk 0:00:21.4]} 43. b6
{[%clk 0:00:20.7]} 43... Ne4 {[%clk 0:00:16.5]} 44. Nd8 {[%clk 0:00:19.3]} 44...
Nc5 {[%clk 0:00:13.7]} 45. b7 {[%clk 0:00:19.6]} 45... Nd7 {[%clk 0:00:13.9]}
46. Nc6 {[%clk 0:00:20.1]} 46... Kg6 {[%clk 0:00:13.5]} 47. b8=Q {[%clk
0:00:18.2]} 47... Nxb8 {[%clk 0:00:12.3]} 48. Nxb8 {[%clk 0:00:19.1]} 48... Kf6
{[%clk 0:00:10.8]} 49. Nxa6 {[%clk 0:00:19.8]} 49... Ke6 {[%clk 0:00:11.6]} 50.
Nc5+ {[%clk 0:00:19.3]} 50... Kd6 {[%clk 0:00:09.8]} 51. Ne6 {[%clk 0:00:19.2]}
51... f3 {[%clk 0:00:07.2]} 52. Nxg5 {[%clk 0:00:18.7]} 52... fxg2 {[%clk
0:00:06.1]} 53. Kxg2 {[%clk 0:00:19.6]} 53... Kc6 {[%clk 0:00:06]} 54. f4 {[%clk
0:00:19.6]} 54... Kb5 {[%clk 0:00:06.9]} 55. f5 {[%clk 0:00:20.2]} 55... Kxa5
{[%clk 0:00:07.8]} 56. f6 {[%clk 0:00:20.9]} 1-0